[Event "IV Copa Marcel Duchamp 2020"]
[Site "Montevideo"]
[Date "2020.02.09"]
[Round "3.5"]
[White "Vazquez, Guillermo"]
[Black "Lopez Azambuja, Nicolas"]
[Result "1-0"]
[ECO "C65"]
[WhiteElo "2524"]
[BlackElo "2310"]
[Annotator "RC"]
[PlyCount "93"]
[EventDate "2020.02.08"]
[EventType "swiss"]
[EventCountry "URU"]
[SourceTitle "playchess.com"]
[Source "ChessBase"]
[SourceQuality "1"]
[TimeControl "5400+30"]

1. e4 {[%emt 0:02:38]} e5 {[%emt 0:00:00]} 2. Nf3 {[%emt 0:00:10]} Nc6 {[%emt 0:00:00]} 3. Bb5 {[%emt 0:01:01]} Nf6 {[%emt 0:00:09]} 4. d3 {[%emt 0:00:52]} Bc5 {[%emt 0:00:27]} 5. Bxc6 {[%emt 0:02:11]} dxc6 {[%emt 0:00:18]} 6. Nbd2 {[%emt 0:00:53]} Be6 {[%emt 0:05:15]} 7. O-O {[%emt 0:01:19]} Nd7 {[%emt 0:00:42]} 8. Nb3 {[%emt 0:01:22]} Bb6 {[%emt 0:01:04]} 9. Ng5 {[%emt 0:00:41]} Bxb3 {[%emt 0:01:56]} 10. axb3 {[%emt 0:00:06]} f6 {[%emt 0:01:13]} 11. Nf3 {[%emt 0:03:06]} O-O {[%emt 0:01:25]} 12. Nd2 {[%emt 0:03:41]} Nc5 {[%emt 0:05:02]} 13. Nc4 {[%emt 0:00:37]} Ne6 {[%emt 0:02:18]} 14. Be3 {[%emt 0:02:40]} Qd7 {[%emt 0:05:18]} 15. Qg4 {[%emt 0:03:46]} Rad8 {[%emt 0:05:25]} 16. Nxb6 {[%emt 0:04:43]} axb6 {[%emt 0:00:12]} 17. Ra7 {[%emt 0:00:12]} Ra8 {[%emt 0:07:25]} 18. Rfa1 {[%emt 0:03:11]} Rab8 {[%emt 0:00:34]} 19. h3 {[%emt 0:05:51]} Rfd8 {[%emt 0:03:26]} 20. g3 {[%emt 0:02:20]} c5 {[%emt 0:18:31]} 21. f4 {[%emt 0:07:23]} Nd4 {[%emt 0:02:03]} 22. Qxd7 {[%emt 0:03:00]} Rxd7 {[%emt 0:00:05]} 23. Bxd4 {[%emt 0:00:14]} cxd4 {[%emt 0:00:44]} 24. Ra8 {[%emt 0:07:19]} Rdd8 {[%emt 0:04:41]} 25. Rxb8 {[%emt 0:01:25]} Rxb8 {[%emt 0:00:06]} 26. Kf2 {[%emt 0:02:10]} Kf7 {[%emt 0:07:33]} 27. c3 {[%emt 0:04:51]} Rd8 {[%emt 0:04:32]} 28. Ke2 {[%emt 0:01:14]} c5 {[%emt 0:04:39]} 29. Ra7 {[%emt 0:01:48]} Rd7 {[%emt 0:00:25]} 30. Ra8 {[%emt 0:00:18]} Ke7 {[%emt 0:06:09]} 31. Rb8 {[%emt 0:07:00]} Kd6 {[%emt 0:03:38]} 32. h4 {[%emt 0:00:47]} b5 {[%emt 0:02:01]} 33. h5 {[%emt 0:02:20]} h6 {[%emt 0:02:38]} 34. c4 {[%emt 0:03:04]} bxc4 {[%emt 0:03:24]} 35. bxc4 {[%emt 0:00:06]} Kc7 {[%emt 0:00:15]} 36. Re8 {[%emt 0:01:13]} Kd6 {[%emt 0:00:38]} 37. Rb8 {[%emt 0:01:49]} Kc7 {[%emt 0:00:25]} 38. Rg8 {[%emt 0:00:04]} Kd6 {[%emt 0:01:25]} 39. Kd2 {[%emt 0:01:51]} Ke6 {[%emt 0:00:37]} 40. Kc2 {[%emt 0:02:23]} b5 {[%emt 0:00:42]} 41. cxb5 {[%emt 0:02:22]} Rb7 {[%emt 0:00:14]} 42. b6 {[%emt 0:00:30]} Kd6 {[%emt 0:00:40]} 43. Ra8 {[%emt 0:03:48]} exf4 {[%emt 0:00:41]} 44. gxf4 {[%emt 0:00:03]} Rxb6 {[%emt 0:01:30]} 45. Ra7 {[%emt 0:00:16]} Rc6 {[%emt 0:00:58]} 46. Rxg7 {[%emt 0:00:42]} c4 {[%emt 0:00:09]} 47. Rg6 {[%emt 0:00:59] Kd5} 1-0

[Event "IV Copa Marcel Duchamp 2020"]
[Site "Montevideo"]
[Date "2020.02.09"]
[Round "3.13"]
[White "Siddeley, Hugh"]
[Black "Michailov, Matias"]
[Result "1-0"]
[ECO "A45"]
[WhiteElo "1974"]
[BlackElo "2262"]
[Annotator "ChessBase"]
[PlyCount "49"]
[EventDate "2020.02.08"]
[EventType "swiss"]
[EventCountry "URU"]
[SourceTitle "playchess.com"]
[Source "ChessBase"]
[SourceQuality "1"]
[TimeControl "5400+30"]

1. d4 {[%emt 0:00:00]} Nf6 {[%emt 0:01:50]} 2. Bf4 {[%emt 0:00:00]} g6 {[%emt 0:01:46]} 3. e3 {[%emt 0:00:08]} Bg7 {[%emt 0:00:14]} 4. h3 {[%emt 0:01:54]} O-O {[%emt 0:00:43]} 5. Nf3 {[%emt 0:00:11]} d6 {[%emt 0:01:59]} 6. Be2 {[%emt 0:00:10]} Nbd7 {[%emt 0:03:41]} 7. O-O {[%emt 0:00:14]} Qe8 {[%emt 0:05:42]} 8. c3 {[%emt 0:05:31]} e5 {[%emt 0:01:12]} 9. Bh2 {[%emt 0:00:06]} Qe7 {[%emt 0:02:17]} 10. a4 {[%emt 0:00:44]} Ne4 {[%emt 0:06:40]} 11. Nbd2 {[%emt 0:04:40]} Nxd2 {[%emt 0:01:22]} 12. Nxd2 {[%emt 0:00:54]} f5 {[%emt 0:00:37]} 13. a5 {[%emt 0:05:10]} a6 {[%emt 0:05:07]} 14. b4 {[%emt 0:02:13]} Nf6 {[%emt 0:02:43]} 15. b5 {[%emt 0:09:00]} axb5 {[%emt 0:09:30]} 16. Qb3+ {[%emt 0:03:45]} Kh8 {[%emt 0:05:38]} 17. Qxb5 {[%emt 0:00:19]} Nd7 {[%emt 0:13:40]} 18. Bf3 {[%emt 0:13:37]} e4 {[%emt 0:03:57]} 19. Bd1 {[%emt 0:00:55]} g5 {[%emt 0:01:15]} 20. Bc2 {[%emt 0:00:59]} Nf6 {[%emt 0:04:30]} 21. Rfe1 {[%emt 0:09:36]} Qf7 {[%emt 0:03:08]} 22. f3 {[%emt 0:03:50]} exf3 {[%emt 0:03:43]} 23. Nxf3 {[%emt 0:03:38]} Bh6 {[%emt 0:00:31]} 24. Qe2 {[%emt 0:00:30]} g4 {[%emt 0:00:30]} 25. Nd2 {[%emt 0:10:20]} 1-0

[Event "IV Copa Marcel Duchamp 2020"]
[Site "Montevideo"]
[Date "2020.02.09"]
[Round "3.15"]
[White "Aguilar Samper, Valentin"]
[Black "Larrea, Manuel"]
[Result "0-1"]
[ECO "E63"]
[WhiteElo "1946"]
[BlackElo "2243"]
[Annotator "ChessBase"]
[PlyCount "120"]
[EventDate "2020.02.08"]
[EventType "swiss"]
[EventCountry "URU"]
[SourceTitle "playchess.com"]
[Source "ChessBase"]
[SourceQuality "1"]
[TimeControl "5400+30"]

1. d4 {[%emt 0:00:08]} Nf6 2. g3 g6 {[%emt 0:07:12]} 3. Bg2 {[%emt 0:00:16]} Bg7 {[%emt 0:00:06]} 4. Nf3 {[%emt 0:00:06]} O-O {[%emt 0:00:09]} 5. O-O d6 {[%emt 0:00:06]} 6. c4 {[%emt 0:00:21]} Nc6 {[%emt 0:00:27]} 7. Nc3 {[%emt 0:00:19]} a6 {[%emt 0:00:06]} 8. Re1 {[%emt 0:00:08]} Rb8 {[%emt 0:01:39]} 9. Rb1 {[%emt 0:00:09]} b5 {[%emt 0:07:55]} 10. cxb5 {[%emt 0:00:18]} axb5 {[%emt 0:00:05]} 11. b4 {[%emt 0:00:14]} e6 {[%emt 0:04:37]} 12. e4 {[%emt 0:06:24]} Ne7 {[%emt 0:05:12]} 13. Nd2 {[%emt 0:17:23]} Nd7 {[%emt 0:03:10]} 14. Nb3 {[%emt 0:04:39]} Ba6 {[%emt 0:12:59]} 15. Qc2 {[%emt 0:08:41]} Nc6 {[%emt 0:11:26]} 16. Nd5 {[%emt 0:13:36]} Bb7 {[%emt 0:10:49]} 17. Nxc7 {[%emt 0:05:35]} Qxc7 {[%emt 0:11:52]} 18. d5 {[%emt 0:01:11]} Nde5 {[%emt 0:01:44]} 19. dxc6 {[%emt 0:08:11]} Qxc6 {[%emt 0:00:23]} 20. Qe2 {[%emt 0:11:37]} Qc4 {[%emt 0:02:16]} 21. Na5 {[%emt 0:01:13]} Qxe2 {[%emt 0:00:45]} 22. Rxe2 {[%emt 0:00:06]} Ba8 {[%emt 0:00:14]} 23. Bb2 {[%emt 0:03:26]} Rfc8 {[%emt 0:04:41]} 24. Rd1 {[%emt 0:03:20]} Bf8 {[%emt 0:02:31]} 25. a3 {[%emt 0:05:38]} Nc4 {[%emt 0:01:59]} 26. Nxc4 {[%emt 0:00:15]} bxc4 {[%emt 0:01:40]} 27. Rc2 {[%emt 0:01:58]} f5 {[%emt 0:03:03]} 28. Rd4 {[%emt 0:05:19]} c3 {[%emt 0:03:43]} 29. Bxc3 {[%emt 0:02:03]} Bg7 {[%emt 0:00:29]} 30. Rxd6 {[%emt 0:00:28]} Rxc3 {[%emt 0:02:24]} 31. Rxc3 {[%emt 0:00:13]} Bxc3 {[%emt 0:00:04]} 32. exf5 {[%emt 0:01:50]} exf5 {[%emt 0:00:27]} 33. Rd3 {[%emt 0:00:33]} Bf6 {[%emt 0:01:09]} 34. Rb3 {[%emt 0:00:36]} Kf7 {[%emt 0:00:37]} 35. b5 {[%emt 0:00:38]} Ke6 {[%emt 0:00:15]} 36. a4 {[%emt 0:00:21]} Bxg2 {[%emt 0:00:47]} 37. Kxg2 {[%emt 0:00:04]} Kd5 {[%emt 0:00:08]} 38. Rd3+ {[%emt 0:00:55]} Bd4 {[%emt 0:00:18]} 39. Kf3 {[%emt 0:00:41]} Kc4 {[%emt 0:00:59]} 40. Rd2 {[%emt 0:00:15]} Ra8 {[%emt 0:00:19]} 41. g4 {[%emt 0:00:46]} fxg4+ {[%emt 0:00:20]} 42. Kxg4 {[%emt 0:00:05]} Rxa4 {[%emt 0:00:15]} 43. Kg5 {[%emt 0:00:32]} Ra3 {[%emt 0:00:31]} 44. h4 {[%emt 0:00:26]} Rf3 {[%emt 0:01:00]} 45. Rc2+ {[%emt 0:00:59]} Kxb5 {[%emt 0:00:53]} 46. Kg4 {[%emt 0:00:28]} Rf5 {[%emt 0:00:40]} 47. f3 {[%emt 0:00:30]} h5+ {[%emt 0:00:25]} 48. Kg3 {[%emt 0:00:06]} Be5+ {[%emt 0:00:10]} 49. Kg2 {[%emt 0:00:06]} Bf6 {[%emt 0:00:22]} 50. Kg3 {[%emt 0:00:14]} Rc5 {[%emt 0:00:15]} 51. Rd2 {[%emt 0:01:33]} Kc6 {[%emt 0:00:49]} 52. Ra2 {[%emt 0:00:13]} Be5+ {[%emt 0:00:37]} 53. Kh3 {[%emt 0:00:37]} Kd5 {[%emt 0:00:32]} 54. Ra6 {[%emt 0:00:41]} Bd6 {[%emt 0:00:24]} 55. Ra8 {[%emt 0:00:33]} Ke6 {[%emt 0:00:25]} 56. Re8+ {[%emt 0:00:21]} Kf6 {[%emt 0:00:35]} 57. Re3 {[%emt 0:00:35]} Rc2 {[%emt 0:00:41]} 58. f4 {[%emt 0:00:22]} Rc4 {[%emt 0:00:10]} 59. Rb3 {[%emt 0:00:40]} Bxf4 {[%emt 0:00:35]} 60. Rb6+ {[%emt 0:00:23]} Ke5 0-1

[Event "IV Copa Marcel Duchamp 2020"]
[Site "Montevideo"]
[Date "2020.02.09"]
[Round "3.23"]
[White "Zaruski, Julio"]
[Black "Guerrero, Alvaro"]
[Result "0-1"]
[ECO "A10"]
[WhiteElo "1822"]
[BlackElo "2094"]
[Annotator "NA"]
[PlyCount "142"]
[EventDate "2020.02.08"]
[EventType "swiss"]
[EventCountry "URU"]
[SourceTitle "playchess.com"]
[Source "ChessBase"]
[SourceQuality "1"]
[TimeControl "5400+30"]

{[%evp 15,140,27,34,1,0,-21,-2,32767,32767,4,32767,-21,-32,-9,-8,-69,-82,-92,32767,32767,32767,-28,-24,-45,-53,-36,-42,32767,32767,32767,-55,-83,-44,-62,-38,-52,-40,-36,-36,-70,-50,-72,0,0,0,-78,-102,-103,-96,-143,-153,-156,-127,-134,-126,-126,-120,-193,-19,-164,-8,-21,0,-8,0,-8,0,-578,-830,-591,-888,32767,32767,32767,32767,32767,32767,32767,32767,32767,32767,32767,-1283,-827,32767,-1484,-2450,-1849,-2202,-1764,-3070,-6446,32767,32767,32767,32767,-29986,-29990,-29978,-29978,-12840,-12845,32767,-29987,-29979,-29961,-29985,-29970,-12843,-5118,32767,-29981,-29982,-29983,-29985,32767,32767,32767,32767,32767,32767,32767,32767,32767,32767,-29994,-29995]} 1. c4 {[%emt 0:00:00]} g6 {[%emt 0:05:27]} 2. g3 {[%emt 0:00:00]} Bg7 {[%emt 0:00:10]} 3. Bg2 {[%emt 0:00:12]} d6 {[%emt 0:01:32]} 4. Nc3 {[%emt 0:01:30]} Nc6 {[%emt 0:04:46]} 5. d3 {[%emt 0:00:59]} e6 {[%emt 0:03:02]} 6. e4 {[%emt 0:00:20] A10: English Opening: Unusual Replies for Black.} Nge7 {[%emt 0:00:52]} 7. Nge2 {[%emt 0:00:07]} O-O {[%emt 0:01:06] [#]} 8. O-O $146 {[%emt 0:00:46]} ({Predecessor:} 8. Be3 Ne5 9. h3 c6 10. f4 Nd7 11. O-O Re8 12. Qe1 Nf8 13. Qf2 f5 14. Rad1 {0-1 (37) Seidemann,U (2090)-Nagrocka,E (2105) Germany 1996}) 8... e5 {[%emt 0:04:53]} 9. Be3 {[%emt 0:03:47]} Nd4 {[%emt 0:00:27]} 10. Kh1 {[%emt 0:00:30]} c6 {[%emt 0:04:03]} 11. Qd2 {[%emt 0:01:57]} Bg4 {[%emt 0:04:26]} 12. f3 {[%emt 0:01:29]} Be6 {[%emt 0:00:03]} 13. Nd1 {[%emt 0:06:16]} f5 {[%emt 0:09:46]} 14. Nxd4 {[%emt 0:00:29]} exd4 {[%emt 0:00:03]} 15. Bg5 {[%emt 0:05:33]} fxe4 {[%emt 0:05:05]} 16. fxe4 {[%emt 0:02:11]} Rxf1+ {[%emt 0:00:07]} 17. Bxf1 {[%emt 0:00:09]} Qd7 {[%emt 0:00:58]} 18. b4 {[%emt 0:08:17]} Rf8 {[%emt 0:01:29]} 19. Nf2 {[%emt 0:00:57] [#]} h6 $1 {[%emt 0:01:23]} 20. Bxe7 $1 {[%emt 0:00:14]} Qxe7 {[%emt 0:00:03]} 21. Bg2 {[%emt 0:00:23]} Kh7 {[%emt 0:01:59]} 22. Nh3 {[%emt 0:01:23]} g5 {[%emt 0:07:59]} 23. Rf1 {[%emt 0:01:16]} Bf6 {[%emt 0:04:15]} 24. a3 {[%emt 0:01:36]} Qd7 {[%emt 0:00:21]} 25. Ng1 {[%emt 0:14:47]} Kg7 {[%emt 0:00:17]} 26. Qd1 {[%emt 0:05:25]} Rf7 {[%emt 0:01:53]} 27. Rf2 {[%emt 0:05:44]} b6 {[%emt 0:01:13]} 28. Qa4 {[%emt 0:01:47]} Kg8 {[%emt 0:11:00]} (28... c5 $15 29. b5 Bd8 30. Rxf7+ Qxf7) 29. e5 {[%emt 0:08:47]} b5 {[%emt 0:00:08]} 30. cxb5 {[%emt 0:01:21]} (30. Qa6 $11 Bxe5 31. Bxc6 {[%mdl 64] Double Attack}) 30... cxb5 {[%emt 0:00:04]} 31. Qd1 {[%emt 0:01:07]} dxe5 {[%emt 0:00:27]} 32. Qh5 {[%emt 0:01:10]} Bg7 {[%emt 0:01:37]} 33. Rxf7 {[%emt 0:00:52]} Bxf7 {[%emt 0:00:53]} 34. Qf3 {[%emt 0:00:18]} Bg6 {[%emt 0:01:46]} 35. Qa8+ {[%emt 0:00:56]} Kh7 {[%emt 0:00:13]} 36. Be4 {[%emt 0:00:12] [#]} (36. Bc6 $17 Qf7 37. Bd5) 36... Qf7 $2 {[%emt 0:04:40]} (36... g4 $1 $19 37. h4 h5) 37. Kg2 {[%emt 0:02:07] [#]} (37. g4 $1 $11) 37... Bxe4+ {[%emt 0:01:24]} (37... g4 $1 $17 38. h3 h5 39. hxg4 hxg4) 38. Qxe4+ {[%emt 0:00:21]} Qg6 {[%emt 0:00:01]} 39. Qxg6+ $1 {[%emt 0:01:49]} Kxg6 {[%emt 0:00:03]} 40. Kf3 $1 {[%emt 0:00:26]} h5 {[%emt 0:05:07]} 41. Ke4 $2 {[%emt 0:00:44]} (41. h3 $1 $11) 41... g4 {[%emt 0:00:08]} 42. Ne2 {[%emt 0:00:40] [#]} Kf6 $1 {[%emt 0:00:25]} 43. Nc1 {[%emt 0:01:52]} Bh6 {[%emt 0:01:16]} 44. Nb3 {[%emt 0:00:06]} Be3 {[%emt 0:00:33]} 45. Nc5 {[%emt 0:00:05]} Bg1 46. Nd7+ {[%emt 0:00:08]} Ke6 {[%emt 0:00:54]} 47. Nxe5 {[%emt 0:00:11]} Bxh2 {[%emt 0:00:10]} 48. Nc6 {[%emt 0:00:40]} Bxg3 {[%emt 0:00:43]} 49. Nxd4+ {[%emt 0:00:05]} Kf6 {[%emt 0:00:52]} 50. Ne2 {[%emt 0:12:11]} Bb8 {[%emt 0:00:27]} 51. Ke3 {[%emt 0:00:41]} h4 {[%emt 0:00:21]} 52. Kf2 {[%emt 0:00:33]} a6 {[%emt 0:01:49]} 53. Kg2 {[%emt 0:00:33]} Ke5 {[%emt 0:00:30]} 54. Nc3 {[%emt 0:02:10]} h3+ {[%emt 0:00:10]} 55. Kh1 {[%emt 0:00:50]} g3 {[%emt 0:00:29]} 56. Ne4 {[%emt 0:00:11]} Kd4 {[%emt 0:00:27]} 57. Ng5 {[%emt 0:01:56]} h2 {[%emt 0:01:15]} 58. Ne6+ {[%emt 0:01:22]} Kxd3 {[%emt 0:00:57]} 59. Kg2 {[%emt 0:00:52]} Kc4 {[%emt 0:00:17]} 60. Nc5 {[%emt 0:01:12]} Bd6 {[%emt 0:00:05]} 61. Ne4 {[%emt 0:00:34]} Be5 {[%emt 0:01:33]} 62. Nc5 {[%emt 0:00:28] [#]} a5 $1 {[%emt 0:00:09]} 63. Nd7 {[%emt 0:01:23]} axb4 {[%emt 0:02:20]} 64. axb4 {[%emt 0:00:12]} Bd4 {[%emt 0:00:20]} 65. Nb8 {[%emt 0:01:32]} Kxb4 {[%emt 0:00:04]} 66. Na6+ {[%emt 0:00:15]} Kc4 {[%emt 0:00:04]} 67. Kh1 {[%emt 0:00:20]} Be5 {[%emt 0:00:07]} 68. Kg2 {[%emt 0:00:55]} Bd6 {[%emt 0:00:02]} 69. Kh1 {[%emt 0:00:34]} Kd3 {[%emt 0:00:03]} 70. Kg2 {[%emt 0:00:42]} Ke2 {[%emt 0:00:04]} 71. Kh1 {[%emt 0:01:40]} Kf1 {[%emt 0:00:05]} 0-1

[Event "IV Copa Marcel Duchamp 2020"]
[Site "Montevideo"]
[Date "2020.02.09"]
[Round "3.24"]
[White "Torella, Rodolfo"]
[Black "Lanaro, Emilio"]
[Result "1/2-1/2"]
[ECO "B50"]
[WhiteElo "2081"]
[BlackElo "1671"]
[Annotator "NA RC"]
[PlyCount "58"]
[EventDate "2020.02.08"]
[EventType "swiss"]
[EventCountry "URU"]
[SourceTitle "playchess.com"]
[Source "ChessBase"]
[SourceQuality "1"]
[TimeControl "5400+30"]

{[%evp 14,58,-2,0,10,32767,15,40,55,59,68,47,64,58,50,0,124,-67,93,0,54,39,61,59,63,75,33,-32,2,-1,0,8,1,-116,-119,-185,-192,-177,-208,-179,-204,-224,-218,-218,-208,-227,-221]} 1. e4 {[%emt 0:00:00]} c5 {[%emt 0:00:00]} 2. Nf3 {[%emt 0:00:00]} d6 {[%emt 0:00:03]} 3. g3 {[%emt 0:05:10]} g6 {[%emt 0:02:36]} 4. Bg2 {[%emt 0:00:15]} Bg7 {[%emt 0:00:07]} 5. O-O {[%emt 0:01:23]} Nf6 {[%emt 0:00:12]} 6. Re1 {[%emt 0:01:13] B50: Sicilian: 2...d6, Miscellaneous.} O-O {[%emt 0:00:30]} 7. d4 {[%emt 0:04:56]} cxd4 {[%emt 0:12:46]} 8. Nxd4 {[%emt 0:00:12] [#]} Re8 $146 {[%emt 0:04:05]} ({Predecessor:} 8... Qc7 9. Nc3 Nc6 10. Nde2 Rb8 11. a4 a6 12. h3 b5 13. axb5 axb5 14. Bg5 b4 15. Bxf6 exf6 {1-0 (52) Gukesh,D (2433)-Slovak,K (2285) Pardubice 2018}) 9. h3 {[%emt 0:06:03]} Nbd7 {[%emt 0:06:54]} 10. c4 {[%emt 0:04:26]} a6 {[%emt 0:05:36]} 11. Nc3 {[%emt 0:02:56]} Rb8 {[%emt 0:06:03]} 12. Be3 {[%emt 0:01:30]} Nc5 {[%emt 0:06:07]} 13. b4 {[%emt 0:10:25]} Ne6 {[%emt 0:03:51]} 14. Nb3 {[%emt 0:04:20]} (14. Rc1 $14) 14... Bd7 {[%emt 0:10:42]} (14... Ng4 $1 $11) 15. a4 $2 {[%emt 0:08:24]} (15. Rc1 $16) 15... Qc8 $2 {[%emt 0:04:34] [#]} (15... Ng4 $1 $17 {and life is bright.} 16. Rc1 Nxe3 17. Rxe3 Bxc3 18. Rcxc3 Bxa4) 16. Qd3 {[%emt 0:02:46]} ({Only move:} 16. Rc1 $1 $16) 16... Nc7 {[%emt 0:06:15]} (16... Nd8 $11) 17. Kh2 {[%emt 0:04:14]} b5 {[%emt 0:03:28]} 18. axb5 {[%emt 0:00:36]} axb5 {[%emt 0:00:06] [#]} 19. c5 $1 {[%emt 0:11:08]} Na6 {[%emt 0:08:40]} 20. Na2 {[%emt 0:02:00]} (20. Rac1 $14) 20... Be6 {[%emt 0:01:24]} 21. cxd6 {[%emt 0:05:10]} Bc4 {[%emt 0:01:07]} 22. Qc2 {[%emt 0:03:59]} exd6 {[%emt 0:01:14]} 23. e5 {[%emt 0:05:57]} (23. Na5 $11 {remains equal.}) 23... dxe5 {[%emt 0:04:18]} 24. Ba7 {[%emt 0:00:55]} (24. Nc5 $17 {was called for.}) 24... Bd5 {[%emt 0:02:40]} 25. Qxc8 {[%emt 0:01:04]} Rbxc8 {[%emt 0:00:07]} 26. Nc5 {[%emt 0:00:44]} Ra8 {[%emt 0:05:05]} 27. Nxa6 {[%emt 0:03:47]} Rxa7 {[%emt 0:00:04]} 28. Nc3 {[%emt 0:01:54]} Bxg2 {[%emt 0:00:42]} 29. Nxb5 {[%emt 0:00:26] [#]} Rxa6 $19 {[%emt 0:01:10]} 1/2-1/2

[Event "IV Copa Marcel Duchamp 2020"]
[Site "Montevideo"]
[Date "2020.02.09"]
[Round "3.25"]
[White "Manteiga, Franco"]
[Black "Suarez, Pedro"]
[Result "1/2-1/2"]
[ECO "E43"]
[WhiteElo "1703"]
[BlackElo "2063"]
[Annotator "NA RC"]
[PlyCount "58"]
[EventDate "2020.02.08"]
[EventType "swiss"]
[EventCountry "URU"]
[SourceTitle "playchess.com"]
[Source "ChessBase"]
[SourceQuality "1"]
[TimeControl "5400+30"]

{[%evp 12,58,6,6,0,32767,33,3,37,-15,-16,-18,16,9,12,4,25,16,35,15,24,24,30,27,63,68,98,82,85,62,105,80,95,114,157,138,165,102,108,119,120,69,88,79,75,59,59,54,45]} 1. d4 {[%emt 0:00:00]} Nf6 {[%emt 0:01:13]} 2. c4 {[%emt 0:00:00]} e6 {[%emt 0:00:15]} 3. Nc3 {[%emt 0:00:00]} Bb4 {[%emt 0:03:11]} 4. e3 {[%emt 0:01:41]} b6 {[%emt 0:02:02]} 5. Bd3 {[%emt 0:07:55]} Bb7 {[%emt 0:03:03]} 6. Nge2 {[%emt 0:00:27]} O-O {[%emt 0:03:27]} (6... Bxg2 $17 7. Rg1 Bf3) 7. O-O {[%emt 0:02:41]} (7. a3 $5 {[%cal Ra3b4]} Be7 8. O-O $11) 7... d5 {[%emt 0:02:25]} 8. a3 {[%emt 0:11:23]} Bd6 {[%emt 0:19:47] E47: Nimzo-Indian: Rubinstein: 5 Bd3 without ...d5} 9. Ng3 {[%emt 0:23:19]} Nbd7 {[%emt 0:10:10]} 10. b3 {[%emt 0:13:40]} Re8 {[%emt 0:06:15] [#]} 11. cxd5 $146 {[%emt 0:09:04]} ({Predecessor:} 11. Bb2 c5 12. cxd5 exd5 13. Rc1 Rc8 14. dxc5 bxc5 15. Nb5 {0-1 (108) Navalgund,N (2312)-Rozum,I (2595) New Delhi 2018}) 11... Bxg3 {[%emt 0:01:31]} 12. hxg3 {[%emt 0:01:15]} exd5 {[%emt 0:00:41]} 13. Bb2 {[%emt 0:05:33]} a6 {[%emt 0:04:54]} 14. Rc1 {[%emt 0:02:52]} Nf8 {[%emt 0:02:43]} 15. Rc2 {[%emt 0:07:32]} Ne6 {[%emt 0:06:38]} 16. Qd2 {[%emt 0:01:04]} Ng5 {[%emt 0:02:07]} 17. Rfc1 {[%emt 0:00:57]} Re7 {[%emt 0:12:23]} 18. a4 {[%emt 0:02:13]} Qd6 {[%emt 0:00:28]} 19. Nb1 {[%emt 0:02:18]} Nfe4 {[%emt 0:04:05]} 20. Qe2 {[%emt 0:00:35]} c5 {[%emt 0:05:16]} 21. Ba3 {[%emt 0:01:25]} Rc7 {[%emt 0:00:48]} 22. Nd2 {[%emt 0:00:32]} Nxd2 {[%emt 0:00:49]} 23. Qxd2 {[%emt 0:00:54]} ({Don't take} 23. Rxd2 $6 a5 $16) ({Don't do} 23. dxc5 $6 bxc5 24. Qxd2 Rac8 $14) 23... Rac8 {[%emt 0:00:54]} 24. Qe2 {[%emt 0:01:00]} (24. a5 $18) 24... a5 {[%emt 0:00:40]} 25. Bf5 {[%emt 0:00:43]} Ne6 {[%emt 0:00:24]} 26. Bxe6 {[%emt 0:00:58]} fxe6 {[%emt 0:00:12]} 27. Qb5 {[%emt 0:01:07]} Qc6 {[%emt 0:02:05]} 28. Qxc6 {[%emt 0:00:22]} Rxc6 $14 {[%emt 0:00:05]} 29. dxc5 {[%emt 0:00:13]} Ba6 {[%emt 0:00:27]} 1/2-1/2